Workbook

Sheet Expenses
M3: #1 | N3: From 2023 1040 - Line 23 Other/SE tax
F4: Index | G4: Category | H4: Amount | I4: Allowable | J4: Proposed | M4: #2 | N4: Ttl tax liability (2023) less SE Tax
F5: 35 | G5: Food, Clothing and Misc. | H5: =SUMIF(Table1[Category],Table2[[#This Row],[Category]],Table1[Amount]) -> 1600 | I5: 2027
B6: Expense | C6: Amount | D6: Category | E6: Column1 | F6: 36 | G6: Housing and Utilities | H6: =SUMIF(Table1[Category],Table2[[#This Row],[Category]],Table1[Amount]) -> 3630 | I6: 2980
B7: Food | C7: 1600 | D7: Food, Clothing and Misc. | F7: 37 | G7: Vehicle Ownership Costs | H7: =SUMIF(Table1[Category],Table2[[#This Row],[Category]],Table1[Amount]) -> 1190 | I7: 619
B8: Rent | C8: 2100 | D8: Housing and Utilities | F8: 38 | G8: Vehicle Operating Costs | H8: =SUMIF(Table1[Category],Table2[[#This Row],[Category]],Table1[Amount]) -> 1400 | I8: 260
B9: Elect/Gas, etc. | C9: 650 | D9: Housing and Utilities | F9: 39 | G9: Public Transportation | H9: =SUMIF(Table1[Category],Table2[[#This Row],[Category]],Table1[Amount]) -> 0
B10: Tel/Cable/Internet | C10: 880 | D10: Housing and Utilities | F10: 40 | G10: Health Insurance | H10: =SUMIF(Table1[Category],Table2[[#This Row],[Category]],Table1[Amount]) -> 800 | I10: 800
B11: Child Support | C11: 1350 | D11: Court Ordered Payment | F11: 41 | G11: Out of Pocket Health Care Costs | H11: =SUMIF(Table1[Category],Table2[[#This Row],[Category]],Table1[Amount]) -> 600 | I11: 332
B12: Vehicle Pmts | C12: 1190 | D12: Vehicle Ownership Costs | F12: 42 | G12: Court Ordered Payment | H12: =SUMIF(Table1[Category],Table2[[#This Row],[Category]],Table1[Amount]) -> 1350 | I12: 1350
B13: Veh Operations | C13: 1400 | D13: Vehicle Operating Costs | F13: 43 | G13: Child/Dependent Care | H13: =SUMIF(Table1[Category],Table2[[#This Row],[Category]],Table1[Amount]) -> 0
B14: Health Ins | C14: 800 | D14: Health Insurance | F14: 44 | G14: Life Insurance | H14: =SUMIF(Table1[Category],Table2[[#This Row],[Category]],Table1[Amount]) -> 0
B15: OOP Healthcare | C15: 600 | D15: Out of Pocket Health Care Costs | F15: 45 | G15: Current year taxes (Income/FICA) | H15: =SUMIF(Table1[Category],Table2[[#This Row],[Category]],Table1[Amount]) -> 5073 | I15: 5073
B16: FICA | C16: 2470 | D16: Current year taxes (Income/FICA) | E16: #1 | F16: 46 | G16: Secured Debts (Attach list) | H16: =SUMIF(Table1[Category],Table2[[#This Row],[Category]],Table1[Amount]) -> 0
B17: Income Tax | C17: 2603 | D17: Current year taxes (Income/FICA) | E17: #2 | F17: 47 | G17: Delinquent State or Local Tax | H17: =SUMIF(Table1[Category],Table2[[#This Row],[Category]],Table1[Amount]) -> 0
F18: 48 | G18: Other Expenses (Attach list) | H18: =SUMIF(Table1[Category],Table2[[#This Row],[Category]],Table1[Amount]) -> 0
F19: 49 | G19: Total Living Expenses (add lines 35-48) | H19: =SUBTOTAL(109,H5:H18) -> 15643 | I19: =SUBTOTAL(109,I5:I18) -> 13441
F20: 50 | G20: Net difference (Line 34 minus 49) | H20: =SUMIF(Table1[Category],Table2[[#This Row],[Category]],Table1[Amount]) -> 0

Sheet Income
A1: From Bank Statements | K1: From pay stubs
A22: From Tax Returns | K22: From Other
A23: Year | B23: Total Inc. | C23: Monthly
A24: 2023 | B24: 365179 | C24: =B24/12 -> 30431.58333
A25: 2022 | B25: 352235 | C25: =B25/12 -> 29352.91667
A41: Average: | B41: =AVERAGE(B24:B40) -> 358707 | C41: =AVERAGE(C24:C40) -> 29892.25

Sheet Sheet1
A1: Monthly income | B1: 29892.25
